fUSD/lending_fUSD_20240920
["ID","MTS","AMOUNT","RATE_DAILY","PERIOD"]
[338663483,1726859436220,-600.0,0.0001425,2]
[338663484,1726859436230,-608.50976929,0.0001425,2]
[338663485,1726859436239,-5000.65852,0.0001425,2]
[338663486,1726859436249,-2000.0,0.00014254,2]
[338663487,1726859436258,-200.0,0.00014254,2]
[338663488,1726859436268,-2000.0,0.00014254,2]
[338663489,1726859436277,-200.0,0.00014254,2]
[338663490,1726859436287,-2000.0,0.00014254,2]
[338663491,1726859436296,-200.0,0.00014254,2]
[338663492,1726859436305,-200.0,0.00014254,2]
[338663493,1726859436315,-6538.58494626,0.00014255,2]
[338663494,1726859436324,-455.0,0.0001427,2]
[338663495,1726859436335,-288.0,0.00014277,2]
[338663496,1726859436344,-152.0,0.00014283,6]
[338663497,1726859436354,-1000.0,0.000143,4]
[338663498,1726859436363,-600.0,0.00014345,2]
[338663499,1726859436372,-174.02747403,0.00014371,2]
[338663500,1726859436381,-159.99729233,0.00014384,2]
[338663501,1726859436392,-2226.46,0.00014384,2]
[338663502,1726859436401,-6538.58494626,0.00014388,2]
[338663503,1726859436410,-153.11,0.0001439,2]
[338663504,1726859436420,-151.0,0.000144,2]
[338663505,1726859436429,-215.260413,0.000144,2]
[338663506,1726859436438,-215.260413,0.000144,2]
[338663507,1726859436448,-183.167647,0.000144,2]
[338663508,1726859436458,-183.167647,0.000144,2]
[338663509,1726859436469,-151.0,0.000144,2]
[338663510,1726859436479,-155.706829,0.000144,2]
[338663511,1726859436488,-155.706829,0.000144,2]
[338663512,1726859436498,-85838.21691721,0.000144,2]
[338663513,1726859436510,-494.44794332,0.0001441,2]
[338663514,1726859436521,-150.0,0.0001442,2]
[338663515,1726859436531,-6847.14963783,0.00014445,2]
[338663516,1726859436540,-600.0,0.00014453,2]
[338663517,1726859436552,-600.0,0.00014453,2]
[338663518,1726859436561,-600.0,0.00014453,2]
[338663519,1726859436571,-600.0,0.00014453,2]
[338663520,1726859436581,-159.99729233,0.00014466,2]
[338663521,1726859436592,-151.02,0.00014466,2]
[338663522,1726859436600,-3567.9,0.00014481,7]
[338663523,1726859436610,-3567.9,0.00014481,7]
[338663524,1726859436619,-303.54,0.0001449,2]
[338663525,1726859436629,-193.6877291,0.00014499,2]
[338663526,1726859436639,-700.16880219,0.000145,2]
[338663527,1726859436649,-16025.45486985,0.000145,2]
[338663528,1726859436659,-1000.0,0.000145,4]
[338663529,1726859436668,-5000.0,0.000145,2]
[338663530,1726859436678,-3626.0,0.000145,7]
[338663531,1726859436687,-30069.05599806,0.000145,2]
[338663532,1726859436696,-194.81301122,0.000145,2]
[338663533,1726859436858,-174.02747403,0.000145,2]
[338663534,1726859436869,-193.6877291,0.000145,2]
[338663535,1726859436879,-159.99729233,0.00014521,2]
[338663536,1726859436888,-6004.49,0.00014521,2]
[338663537,1726859436899,-6538.58494626,0.00014521,2]
[338663538,1726859436908,-272.3,0.00014532,2]
[338663539,1726859436916,-600.0,0.0001454,2]
[338663540,1726859436926,-600.0,0.0001454,2]
[338663541,1726859436935,-600.0,0.0001454,2]
[338663542,1726859436944,-600.0,0.0001454,2]
[338663543,1726859436954,-901.39518089,0.0001454,2]
[338663544,1726859436963,-607.44662863,0.0001455,2]
[338663545,1726859436972,-600.0,0.0001455,2]
[338663546,1726859436981,-600.0,0.0001455,2]
[338663547,1726859436991,-600.0,0.0001455,2]
[338663548,1726859436999,-608.24391268,0.0001455,2]
[338663549,1726859437009,-600.0,0.0001455,2]
[338663550,1726859437018,-600.0,0.0001455,2]
[338663551,1726859437027,-600.0,0.0001455,2]
[338663552,1726859437036,-600.0,0.0001455,2]
[338663553,1726859437045,-600.0,0.0001455,2]
[338663554,1726859437055,-600.0,0.0001455,2]
[338663555,1726859437064,-600.0,0.0001455,2]
[338663556,1726859437073,-600.0,0.0001455,2]
[338663557,1726859437082,-600.0,0.0001455,2]
[338663558,1726859437093,-600.0,0.0001455,2]
[338663559,1726859437105,-600.0,0.0001455,2]
[338663560,1726859437115,-600.0,0.0001455,2]
[338663561,1726859437125,-600.0,0.0001455,2]
[338663562,1726859437134,-600.0,0.0001455,2]
[338663563,1726859437144,-600.0,0.0001455,2]
[338663564,1726859437162,-600.0,0.0001455,2]
[338663565,1726859437171,-600.0,0.0001455,2]
[338663566,1726859437180,-600.0,0.0001455,2]
[338663567,1726859437189,-600.0,0.0001455,2]
[338663568,1726859437198,-600.0,0.0001455,2]
[338663569,1726859437207,-600.0,0.0001455,2]
[338663570,1726859437217,-600.0,0.0001455,2]
[338663571,1726859437227,-600.0,0.0001455,2]
[338663572,1726859437236,-600.0,0.0001455,2]
[338663573,1726859437246,-600.0,0.0001455,2]
[338663574,1726859437256,-600.0,0.0001455,2]
[338663575,1726859437265,-600.0,0.0001455,2]
[338663576,1726859437274,-600.0,0.0001455,2]
[338663577,1726859437284,-600.0,0.0001455,2]
[338663578,1726859437294,-377.22043977,0.0001457,2]
[338663579,1726859437304,-231.591105,0.00014579,2]
[338663580,1726859437313,-231.591105,0.00014579,2]
[338663581,1726859437323,-166.96894861,0.0001458,2]
[338663582,1726859437333,-151.0,0.0001458,2]
[338663583,1726859437343,-8311.4062176,0.0001458,2]
[338663584,1726859437353,-23922.0265721,0.0001458,2]
[338663585,1726859437362,-87375.499684,0.0001458,2]
[338663586,1726859437372,-345.7323725,0.0001458,2]
[338663587,1726859437382,-54515.2199549,0.0001458,2]
[338663588,1726859437393,-300.0,0.00014589,2]
[338663589,1726859437402,-300.0,0.00014589,2]
[338663590,1726859437412,-300.0,0.00014589,2]
[338663591,1726859437421,-300.0,0.00014589,2]
[338663592,1726859437432,-285.184781,0.00014589,2]
[338663593,1726859437442,-285.184781,0.00014589,2]
[338663595,1726859437452,-644.357955,0.00014589,2]
[338663596,1726859437462,-644.357955,0.00014589,2]
[338663598,1726859437471,-211.4,0.00014589,2]
[338663599,1726859437481,-211.4,0.00014589,2]
[338663600,1726859437490,-158.852,0.00014589,2]
[338663601,1726859437500,-158.852,0.00014589,2]
[338663602,1726859437509,-151.0,0.00014589,2]
[338663603,1726859437519,-300.0,0.00014589,2]
[338663604,1726859437528,-300.0,0.00014589,2]
[338663605,1726859437537,-300.0,0.00014589,2]
[338663606,1726859437547,-300.0,0.00014589,2]
[338663607,1726859437556,-300.0,0.00014589,2]
[338663608,1726859437566,-300.0,0.00014589,2]
[338663609,1726859437576,-300.0,0.00014589,2]
[338663610,1726859437586,-300.0,0.00014589,2]
[338663611,1726859437596,-300.0,0.00014589,2]
[338663612,1726859437606,-300.0,0.00014589,2]
[338663613,1726859437615,-300.0,0.00014589,2]
[338663614,1726859437625,-300.0,0.00014589,2]
[338663615,1726859437635,-300.0,0.00014589,2]
[338663616,1726859437648,-300.0,0.00014589,2]
[338663618,1726859437657,-300.0,0.00014589,2]
[338663619,1726859437667,-300.0,0.00014589,2]
[338663620,1726859437676,-300.0,0.00014589,2]
[338663621,1726859437686,-300.0,0.00014589,2]
[338663622,1726859437696,-300.0,0.00014589,2]
[338663623,1726859437706,-300.0,0.00014589,2]
[338663624,1726859437719,-377.22043977,0.0001459,2]
[338663625,1726859437729,-3011.64364994,0.0001459,2]
[338663626,1726859437740,-151.0,0.0001459,2]
[338663627,1726859437750,-215.260413,0.0001459,2]
[338663629,1726859437760,-215.260413,0.0001459,2]
[338663630,1726859437770,-183.167647,0.0001459,2]
[338663631,1726859437780,-183.167647,0.0001459,2]
[338663632,1726859437790,-206.6291,0.0001459,2]
[338663633,1726859437800,-155.706829,0.0001459,2]
[338663634,1726859437810,-155.706829,0.0001459,2]
[338663635,1726859437820,-151.0,0.0001459,2]
[338663636,1726859437830,-151.0,0.0001459,2]
[338663637,1726859437839,-151.0,0.0001459,2]
[338663638,1726859437849,-151.0,0.0001459,2]
[338663639,1726859437859,-346.837668,0.0001459,2]
[338663640,1726859437868,-346.837668,0.0001459,2]
[338663641,1726859437878,-151.0,0.0001459,2]
[338663642,1726859437888,-7512.9603329,0.0001459,2]
[338663643,1726859437898,-6714.5144482,0.0001459,2]
[338663644,1726859437907,-5916.0685635,0.0001459,2]
[338663645,1726859437917,-21623.9264468,0.0001459,2]
[338663646,1726859437926,-19325.8263214,0.0001459,2]
[338663647,1726859437936,-17027.7261961,0.0001459,2]
[338663648,1726859437946,-78681.3609419,0.0001459,2]
[338663649,1726859437955,-37278.3654061,0.0001459,2]
[338663650,1726859437974,-32708.8567936,0.0001459,2]
[338663651,1726859437984,-29322.50229825,0.0001459,2]
[338663652,1726859437995,-2948.80265338,0.0001459,2]
[338663653,1726859438007,-3753.76120749,0.0001459,2]
[338663654,1726859438018,-10774.44975929,0.0001459,2]
[338663655,1726859438030,-14493.56753919,0.0001459,2]
[338663656,1726859438039,-310.8516402,0.0001459,2]
[338663657,1726859438049,-275.9709079,0.0001459,2]
[338663659,1726859438058,-241.0901757,0.0001459,2]
[338663660,1726859438067,-48943.1356313,0.0001459,2]
[338663662,1726859438076,-43371.0513076,0.0001459,2]
[338663663,1726859438086,-37798.966984,0.0001459,2]
[338663664,1726859438096,-13664.02980216,0.00014599,2]
[338663665,1726859438106,-83667.28681766,0.00014599,2]
[338663666,1726859438115,-151.0,0.00014599,2]
[338663667,1726859438125,-151.0,0.00014599,2]
[338663668,1726859438135,-151.0,0.00014599,2]
[338663669,1726859438145,-151.0,0.00014599,2]
[338663670,1726859438156,-151.0,0.00014599,2]
[338663671,1726859438166,-151.0,0.00014599,2]
[338663672,1726859438175,-239.64641,0.00014599,2]
[338663673,1726859438186,-151.0,0.00014599,2]
[338663674,1726859438195,-239.64641,0.00014599,2]
[338663675,1726859438204,-151.0,0.00014599,2]
[338663676,1726859438213,-151.0,0.00014599,2]
[338663677,1726859438222,-361.539725,0.00014599,2]
[338663678,1726859438232,-732.462899,0.00014599,2]
[338663679,1726859438241,-361.539725,0.00014599,2]
[338663680,1726859438251,-325.844699,0.00014599,2]
[338663681,1726859438260,-732.462899,0.00014599,2]
[338663682,1726859438272,-325.844699,0.00014599,2]
[338663683,1726859438282,-151.0,0.00014599,2]
[338663684,1726859438292,-151.0,0.00014599,2]
[338663685,1726859438301,-300.0,0.00014599,2]
[338663686,1726859438311,-300.0,0.00014599,2]
[338663687,1726859438320,-300.0,0.00014599,2]
[338663688,1726859438331,-300.0,0.00014599,2]
[338663689,1726859438341,-300.0,0.00014599,2]
[338663690,1726859438350,-300.0,0.00014599,2]
[338663691,1726859438359,-300.0,0.00014599,2]
[338663692,1726859438368,-300.0,0.00014599,2]
[338663693,1726859438377,-300.0,0.00014599,2]
[338663694,1726859438387,-300.0,0.00014599,2]
[338663695,1726859438397,-300.0,0.00014599,2]
[338663696,1726859438406,-300.0,0.00014599,2]
[338663697,1726859438415,-300.0,0.00014599,2]
[338663698,1726859438425,-300.0,0.00014599,2]
[338663699,1726859438434,-300.0,0.00014599,2]
[338663700,1726859438443,-300.0,0.00014599,2]
[338663701,1726859438453,-300.0,0.00014599,2]
[338663702,1726859438462,-300.0,0.00014599,2]
[338663703,1726859438471,-300.0,0.00014599,2]
[338663704,1726859438480,-300.0,0.00014599,2]
[338663705,1726859438489,-300.0,0.00014599,2]
[338663706,1726859438498,-300.0,0.00014599,2]
[338663707,1726859438508,-300.0,0.00014599,2]
[338663708,1726859438517,-300.0,0.00014599,2]
[338663709,1726859438526,-300.0,0.00014599,2]
[338663710,1726859438535,-300.0,0.00014599,2]
[338663711,1726859438546,-300.0,0.00014599,2]
[338663712,1726859438555,-300.0,0.00014599,2]
[338663713,1726859438564,-300.0,0.00014599,2]
[338663714,1726859438574,-300.0,0.00014599,2]
[338663715,1726859438583,-300.0,0.00014599,2]
[338663716,1726859438592,-300.0,0.00014599,2]
[338663717,1726859438601,-300.0,0.00014599,2]
[338663718,1726859438611,-300.0,0.00014599,2]
[338663719,1726859438619,-300.0,0.00014599,2]
[338663720,1726859438629,-300.0,0.00014599,2]
[338663721,1726859438638,-300.0,0.00014599,2]
[338663722,1726859438649,-300.0,0.00014599,2]
[338663723,1726859438657,-69193.39404581,0.000146,2]
[338663724,1726859438699,-231.37869334,0.00013989,2]
[338663725,1726859438708,-268.62809565,0.000146,2]
[338663726,1726859438723,-8033.04087757,0.000146,2]
[338663727,1726859438736,-3094.63215291,0.000146,2]
[338663728,1726859438747,-168012.98049032,0.000146,2]
[338663729,1726859438759,-1245.568807,0.000146,2]
[338663730,1726859438771,-896.13144154,0.000146,2]
[338663731,1726859438787,-676.1,0.000146,2]
[338663732,1726859438800,-2924.1931872,0.000146,2]
[338663733,1726859438811,-41267.17184825,0.000146,2]
[338663734,1726859438822,-81863.89683209,0.000146,2]
[338663735,1726859438832,-2763.18092288,0.000146,2]
[338663736,1726859438844,-282.15381465,0.000146,2]
[338663737,1726859438954,-500.0,0.0001304,2]
[338663738,1726859438965,-321.92497364,0.00013599,2]
[338663739,1726859438975,-375.55056944,0.00013989,2]
[338663740,1726859438985,-15889.67101879,0.000146,2]
[338663741,1726859438997,-11216.25702667,0.000146,2]
[338663742,1726859439009,-12612.34474342,0.000146,2]
[338663743,1726859439022,-463.99900633,0.000146,2]
[338663744,1726859439034,-515182.52301876,0.000146,2]
[338663745,1726859439045,-21681.60663015,0.000146,2]
[338663746,1726859439054,-1653579.95348955,0.000146,4]
[338663747,1726859439066,-1427.2185654,0.000146,4]
[338663748,1726859439078,-1965155.90962226,0.000146,4]
[338663749,1726859439091,-4677.82886025,0.000146,4]
[338663750,1726859439103,-305.07545363,0.000146,4]
[338663751,1726859439115,-1030.0835913,0.000146,4]
[338663753,1726859439673,-99169.75926835,0.000146,4]
[338663755,1726859439759,-27000.0,0.000146,4]
[338663756,1726859439772,-6091.085,0.000146,4]
[338663757,1726859439843,-1427.73801076,0.000146,4]
[338663758,1726859439855,-1083.0705318,0.000146,4]
[338663759,1726859439866,-1905.41,0.000146,4]
[338663760,1726859439914,-13883.07384791,0.000146,4]
[338663791,1726859442784,-862.12443823,0.00013999,2]
[338663792,1726859442796,-808.07556177,0.000146,4]
[338663793,1726859442824,-5949.81,0.000146,4]
[338663794,1726859442835,-6290.0,0.000146,4]
[338663795,1726859442867,-482.285006,0.000146,4]
[338663796,1726859443004,-1868421.21749422,0.000146,4]
[338663797,1726859443524,-1056.82472435,0.000146,4]
[338663798,1726859443577,-2102.0004,0.000146,4]
[338663995,1726859445848,-204.0,0.00013698,2]
[338663997,1726859445859,-200.0,0.00013788,2]
[338663999,1726859445868,-6920.0,0.000146,4]
[338664001,1726859445880,-4413.50307116,0.000146,4]
[338664003,1726859445893,-669.58337309,0.000146,4]
[338664005,1726859445905,-606.37577,0.000146,4]
[338664007,1726859445916,-276.75,0.000146,4]
[338664020,1726859446034,-319082.06412571,0.000146,4]
[338664022,1726859446046,-53864.27358992,0.000146,4]
[338664598,1726859486907,500.0,0.00011164,2]
[338664599,1726859489582,521.77679091,0.00011164,2]
[338664600,1726859525058,500.0,0.00011164,2]
[338664601,1726859536601,330.68,0.00011565,2]
[338664602,1726859615133,500.0,0.00011164,2]
[338664603,1726859622497,150.0,0.00023,120]
[338664604,1726859652970,500.0,0.00011164,2]
[338664605,1726859661348,500.0,0.00011164,2]
[338664606,1726859695852,788.2,0.000149,31]
[338664607,1726859695903,788.2,0.000149,31]
[338664608,1726859695967,788.2,0.000149,31]
[338664609,1726859696027,788.2,0.000149,31]
[338664610,1726859696083,788.2,0.000149,31]
[338664611,1726859696146,788.2,0.000149,31]
[338664612,1726859696209,788.2,0.000149,31]
[338664613,1726859696269,788.2,0.000149,31]
[338664614,1726859696325,788.2,0.000149,31]
[338664615,1726859696388,788.2,0.000149,31]
[338664616,1726859696449,788.2,0.000149,31]
[338664617,1726859696508,788.2,0.000149,31]
[338664618,1726859696571,788.2,0.000149,31]
[338664619,1726859696629,788.2,0.000149,31]
[338664620,1726859696693,788.2,0.000149,31]
[338664621,1726859696757,788.2,0.000149,31]
[338664622,1726859802248,158.17,0.00010959,2]
[338664623,1726859858477,250.0,0.00012001,2]
[338664624,1726859858822,640.0,0.00012001,2]
[338664625,1726859900028,487.08,0.0001199,2]
[338664626,1726859928108,516.17,0.0001199,2]
[338664627,1726860014941,1050.0,0.00011,2]
[338664628,1726860022715,246.56,0.00011995,2]
[338664629,1726860132746,364.56,0.00010151,2]
[338664630,1726860307942,662.15,0.000149,31]
[338664631,1726860308104,662.15,0.000149,31]
[338664632,1726860308147,662.15,0.000149,31]
[338664633,1726860308293,662.15,0.000149,31]
[338664634,1726860308334,662.15,0.000149,31]
[338664635,1726860308370,662.15,0.000149,31]
[338664636,1726860308410,662.15,0.000149,31]
[338664637,1726860308454,662.15,0.000149,31]
[338664638,1726860308507,662.15,0.000149,31]
[338664639,1726860308584,662.15,0.000149,31]
[338664640,1726860308625,662.15,0.000149,31]
[338664641,1726860308703,662.15,0.000149,31]
[338664642,1726860308741,662.15,0.000149,31]
[338664643,1726860308804,662.15,0.000149,31]
[338664644,1726860308862,662.15,0.000149,31]
[338664645,1726860308909,662.15,0.000149,31]
[338664646,1726860330550,250.0,0.00011617,2]
[338664647,1726860366514,171.92,0.00011649,2]
[338664648,1726860390508,250.0,0.00011656,2]
[338664650,1726860510349,176.56,0.00010959,2]
[338664652,1726860525595,1000.0,0.00011558,2]
[338664660,1726860623223,246.56,0.00011569,2]
[338664669,1726860631875,-382.62401839,0.00012045,2]
[338664670,1726860631884,-432.73,0.00012056,2]
[338664671,1726860631894,-192.24,0.00012145,2]
[338664672,1726860631904,-189.344981,0.00012203,2]
[338664673,1726860631914,-182.302393,0.00012203,2]
[338664674,1726860631923,-2030.0,0.00012203,2]
[338664676,1726860631933,-364.56,0.00012415,2]
[338664678,1726860631943,-188.44,0.00012451,2]
[338664680,1726860631952,-188.44,0.00012455,2]
[338664682,1726860631961,-188.44,0.00012458,2]
[338664684,1726860631970,-188.44,0.00012461,2]
[338664686,1726860631979,-188.44,0.00012464,2]
[338664687,1726860631988,-409.01,0.00012466,2]
[338664688,1726860631997,-150.0,0.00012466,2]
[338664689,1726860632007,-2178.54814575,0.00012467,2]
[338664690,1726860632019,-173.26185425,0.00012467,2]
[338664691,1726860632028,-2688.76931416,0.00012467,2]
[338664692,1726860632042,-296.85068584,0.00012467,2]
[338664693,1726860632054,-5988.14,0.00012467,2]
[338664694,1726860632064,-188.44,0.00012468,2]
[338664695,1726860632073,-8191.34031415,0.00012468,2]
[338664696,1726860632094,-11569.35968585,0.00012468,2]
[338664697,1726860632104,-2539.58,0.00012468,2]
[338664698,1726860632113,-188.44,0.00012471,2]
[338664699,1726860632122,-188.44,0.00012474,2]
[338664700,1726860632133,-499.99,0.00012478,2]
[338664701,1726860632142,-188.44,0.00012478,2]
[338664702,1726860632151,-188.44,0.00012481,2]
[338664703,1726860632160,-188.44,0.00012484,2]
[338664704,1726860632170,-188.44,0.00012487,2]
[338664705,1726860632179,-188.44,0.00012491,2]
[338664707,1726860632188,-188.44,0.00012494,2]
[338664708,1726860632197,-188.44,0.00012497,2]
[338664710,1726860632206,-188.44,0.00012501,2]
[338664712,1726860632215,-188.44,0.00012504,2]
[338664714,1726860632224,-188.44,0.00012507,2]
[338664716,1726860632234,-1324.674,0.0001251,2]
[338664718,1726860632243,-188.44,0.0001251,2]
[338664720,1726860632253,-188.44,0.00012514,2]
[338664723,1726860632263,-974.0,0.00012526,2]
[338664724,1726860632272,-388.87,0.00012648,2]
[338664726,1726860632281,-328.44532766,0.00012692,2]
[338664728,1726860632290,-169.22,0.00012758,2]
[338664729,1726860632299,-189.49,0.00012769,2]
[338664730,1726860632309,-189.49,0.0001277,2]
[338664731,1726860632318,-189.49,0.0001277,2]
[338664732,1726860632327,-189.49,0.0001277,2]
[338664733,1726860632336,-189.49,0.0001277,2]
[338664734,1726860632345,-189.49,0.0001277,2]
[338664735,1726860632354,-151.9,0.0001277,2]
[338664736,1726860632363,-151.9,0.0001277,2]
[338664737,1726860632373,-189.49,0.0001277,2]
[338664738,1726860632382,-151.9,0.0001277,2]
[338664739,1726860632391,-151.9,0.0001277,2]
[338664740,1726860632400,-189.49,0.0001277,2]
[338664741,1726860632409,-189.49,0.0001277,2]
[338664742,1726860632418,-189.49,0.0001277,2]
[338664743,1726860632427,-189.49,0.0001277,2]
[338664744,1726860632436,-189.49,0.0001277,2]
[338664745,1726860632446,-189.49,0.0001277,2]
[338664746,1726860632455,-189.49,0.0001277,2]
[338664747,1726860632464,-189.49,0.0001277,2]
[338664748,1726860632473,-189.49,0.0001277,2]
[338664749,1726860632482,-189.49,0.0001277,2]
[338664750,1726860632492,-189.49,0.0001277,2]
[338664751,1726860632501,-189.49,0.0001277,2]
[338664752,1726860632510,-444.25432807,0.0001277,2]
[338664753,1726860632519,-189.49,0.0001277,2]
[338664754,1726860632528,-500.0,0.00012773,2]
[338664755,1726860632537,-500.0,0.00012773,2]
[338664756,1726860632547,-500.0,0.00012773,2]
[338664757,1726860632556,-161.23962938,0.00012773,2]
[338664758,1726860632565,-500.0,0.00012773,2]
[338664759,1726860632574,-500.0,0.00012779,2]
[338664760,1726860632583,-502.74892705,0.00012779,2]
[338664761,1726860632593,-500.0,0.00012779,2]
[338664762,1726860632602,-379.90199242,0.00012779,2]
[338664763,1726860632612,-500.0,0.00012779,2]
[338664764,1726860632621,-500.0,0.00012779,2]
[338664765,1726860632630,-500.0,0.00012779,2]
[338664766,1726860632639,-500.0,0.00012779,2]
[338664767,1726860632648,-500.0,0.00012779,2]
[338664768,1726860632657,-647570.24951499,0.0001278,2]
[338664769,1726860632669,-7494.83037917,0.0001278,2]
[338664770,1726860632681,-2555.03487565,0.0001278,2]
[338664771,1726860632692,-603.91888408,0.0001278,2]
[338664772,1726860632703,-787.72537109,0.0001278,2]
[338664773,1726860632714,-809.14403611,0.0001278,2]
[338664774,1726860632725,-19289.99999953,0.0001278,2]
[338664775,1726860632736,-1594.44501813,0.0001278,2]
[338664776,1726860632747,-1381.95190557,0.0001278,2]
[338664777,1726860632758,-712.02367317,0.0001278,2]
[338664778,1726860632768,-1721.79455823,0.0001278,2]
[338664779,1726860632779,-315.0,0.0001278,2]
[338664780,1726860632790,-9925.73485824,0.0001278,2]
[338664781,1726860632801,-4036.74748476,0.0001278,2]
[338664782,1726860632812,-2408.87747833,0.0001278,2]
[338664783,1726860632823,-156978.38619282,0.0001278,2]
[338664784,1726860632834,-501.23538144,0.0001278,2]
[338664785,1726860632845,-2903.71306986,0.0001278,2]
[338664786,1726860632856,-3421.55845167,0.0001278,2]
[338664787,1726860632867,-2228.53585342,0.0001278,2]
[338664788,1726860632881,-1339.32568212,0.0001278,2]
[338664789,1726860632892,-1697.0288294,0.0001278,2]
[338664790,1726860632903,-497.48514,0.0001278,2]
[338664791,1726860632915,-619.65174307,0.0001278,2]
[338664792,1726860632925,-910.67391534,0.0001278,2]
[338664793,1726860632937,-636.79253411,0.0001278,2]
[338664794,1726860632948,-6683.26958659,0.0001278,2]
[338664795,1726860632962,-474.46635641,0.0001278,2]
[338664796,1726860632973,-740.97,0.0001278,2]
[338664802,1726860638056,-40851.29663529,0.0001278,2]
[338664803,1726860638066,-456.22,0.00012792,2]
[338664804,1726860638075,-6308.07217612,0.000128,3]
[338664805,1726860638095,-156.2770892,0.000128,2]
[338664806,1726860638105,-189.344981,0.00012813,2]
[338664807,1726860638296,-182.302393,0.00012813,2]
[338664808,1726860638306,-6087.56969568,0.0001283,7]
[338664809,1726860638315,-11773.87799834,0.0001287,2]
[338664810,1726860638324,-9440.45591193,0.0001288,2]
[338664811,1726860638333,-829.73767789,0.00012886,2]
[338664812,1726860638342,-175.18324582,0.0001289,2]
[338664813,1726860638351,-151.9,0.0001289,2]
[338664814,1726860638360,-1422.4903,0.0001289,2]
[338664815,1726860638369,-205.01068911,0.000129,2]
[338664816,1726860638378,-829.73767785,0.00012902,2]
[338664817,1726860638387,-829.73767785,0.00012918,2]
[338664818,1726860638396,-829.73767785,0.00012934,2]
[338664820,1726860638406,-829.73767785,0.0001295,2]
[338664822,1726860638415,-158.85892903,0.00012973,2]
[338664825,1726860638424,-500.0,0.00012973,2]
[338664826,1726860638433,-296.3468106,0.00012973,2]
[338664828,1726860638442,-203.52738512,0.00012973,2]
[338664830,1726860638451,-500.0,0.00012973,2]
[338664832,1726860638461,-500.0,0.00012973,2]
[338664834,1726860638470,-151.9,0.00012979,2]
[338664836,1726860638479,-151.9,0.0001298,2]
[338664838,1726860638489,-151.9,0.0001298,2]
[338664840,1726860638498,-151.9,0.0001298,2]
[338664842,1726860638507,-151.9,0.0001298,2]
[338664843,1726860638516,-151.9,0.0001298,2]
[338664845,1726860638525,-444.25432807,0.0001298,2]
[338664847,1726860638534,-1000.0,0.00012986,2]
[338664849,1726860638544,-582.0,0.00012986,2]
[338664851,1726860638553,-100193.0,0.00012986,2]
[338664853,1726860638562,-378.1006138,0.00012989,2]
[338664855,1726860638571,-161.96508533,0.00012989,2]
[338664857,1726860638586,-151.9,0.0001299,2]
[338664859,1726860638595,-151.9,0.0001299,2]
[338664861,1726860638604,-151.9,0.0001299,2]
[338664862,1726860638614,-151.9,0.0001299,2]
[338664864,1726860638624,-151.9,0.0001299,2]
[338664866,1726860638635,-151.9,0.0001299,2]
[338664868,1726860638645,-151.9,0.0001299,2]
[338664870,1726860638655,-151.9,0.0001299,2]
[338664872,1726860638664,-151.9,0.0001299,2]
[338664874,1726860638673,-151.9,0.0001299,2]
[338664876,1726860638682,-151.9,0.0001299,2]
[338664878,1726860638691,-444.25432807,0.0001299,2]